bitfinex-derivatives/quotes_SOLF0:USTF0_20220102
["timestamp","ask_amount","ask_price","bid_price","bid_amount"]
[1641096539460,12.54400504,177.91,177.89,6.47560395]
[1641096542665,2.69571452,177.91,177.89,6.47560395]
[1641096543462,2.69571452,177.93,177.89,6.47560395]
[1641096544464,2.69571452,177.93,177.89,34.14039395]
[1641096546267,2.69571452,177.93,177.89,6.47560395]
[1641096546967,2.69571452,177.93,177.89,34.14039395]
[1641096547467,12.54399969,177.94,177.89,34.14039395]
[1641096547870,2.69571452,177.94,177.89,34.14039395]
[1641096548070,3.98525468,177.9,177.89,34.14039395]
[1641096549470,3.98525468,177.9,177.89,6.47560395]
[1641096551073,3.98525468,177.9,177.89,34.14039395]
[1641096551275,2.69571452,177.94,177.93,2.48889423]
[1641096551474,5.69571452,177.94,177.89,27.66479]
[1641096551674,3.0,177.93,177.89,27.66479]
[1641096552173,3.0,177.93,177.88,7.77150628]
[1641096552374,14.95676926,177.92,177.88,7.77150628]
[1641096552876,3.0,177.91,177.88,7.77150628]
[1641096553077,11.95676926,177.9,177.88,7.77150628]
[1641096553474,11.95676926,177.9,177.83,59.1828]
[1641096553973,14.65248378,177.9,177.83,59.1828]
[1641096554475,14.65248378,177.9,177.84,1.29388327]
[1641096554675,14.65248378,177.9,177.84,5.46888327]
[1641096555176,11.95676926,177.89,177.85,1.29388327]
[1641096556777,11.95676926,177.89,177.86,6.47686089]
[1641096558482,14.95676926,177.89,177.86,6.47686089]
[1641096558683,3.0,177.88,177.82,5.61797753]
[1641096559083,11.95676926,177.87,177.82,5.61797753]
[1641096559985,14.65248378,177.87,177.82,5.61797753]
[1641096560186,11.95676926,177.86,177.82,5.61797753]
[1641096561090,11.95676926,177.86,177.8,59.6385]
[1641096561292,11.95676926,177.85,177.8,59.6385]
[1641096561989,11.95676926,177.85,177.81,1.29595792]
[1641096563891,11.95676926,177.85,177.83,6.47805967]
[1641096564792,11.95676926,177.86,177.83,6.47805967]
[1641096565995,11.95676926,177.85,177.83,6.47805967]
[1641096567595,11.95676926,177.86,177.83,0.08988673]
[1641096567793,27.66479,177.88,177.83,0.08988673]
[1641096567994,30.66479,177.88,177.8,59.6385]
[1641096568294,27.66479,177.88,177.8,59.6385]
[1641096568694,2.67951296,177.87,177.8,59.6385]
[1641096569794,3.0,177.89,177.8,59.6385]
[1641096570194,27.66479,177.87,177.8,59.6385]
[1641096571295,3.0,177.89,177.8,59.6385]
[1641096571496,75.60846926,177.9,177.8,59.6385]
[1641096571800,72.60846926,177.9,177.8,59.6385]
[1641096572499,27.66479,177.87,177.8,59.6385]
[1641096572903,2.6792531,177.89,177.8,62.6385]
[1641096573102,2.6792531,177.89,177.83,7.77347474]
[1641096573300,2.6792531,177.89,177.88,6.47620559]
[1641096573504,11.95676926,177.91,177.88,12.00220559]
[1641096573704,34.94148302,177.95,177.88,12.00220559]
[1641096573705,3.0,177.93,177.88,12.00220559]
[1641096574407,2.67811121,177.92,177.88,12.00220559]
[1641096574604,2.67811121,177.92,177.88,6.47620559]
[1641096575116,11.95676926,177.89,177.88,6.47620559]
[1641096575906,11.95676926,177.9,177.88,6.47620559]
[1641096577205,11.95676926,177.89,177.88,6.47620559]
[1641096584513,11.95676926,177.9,177.88,6.47620559]
[1641096587017,11.95676926,177.89,177.88,6.47620559]
[1641096591424,11.95676926,177.91,177.88,6.47620559]
[1641096596429,11.95676926,177.92,177.88,6.47620559]
[1641096598632,11.95676926,177.9,177.88,6.47620559]
[1641096599433,11.95676926,177.91,177.88,6.47620559]
[1641096601036,11.95676926,177.9,177.88,6.47620559]
[1641096613153,11.95676926,177.91,177.88,6.47620559]
[1641096613453,11.95676926,177.91,177.88,12.81420559]
[1641096618462,11.95676926,177.92,177.88,12.81420559]
[1641096621065,11.95676926,177.91,177.88,12.81420559]
[1641096623666,11.95676926,177.91,177.88,6.47620559]
[1641096628471,2.67811121,177.9,177.85,30.66479]
[1641096629272,0.48236267,177.91,177.87,3.99132586]
[1641096638180,0.48236267,177.91,177.86,5.28893377]
[1641096639393,0.48236267,177.91,177.86,8.28893377]
[1641096640984,12.52677317,177.94,177.87,5.28893377]
[1641096642287,12.52677317,177.94,177.89,27.66479]
[1641096642887,12.52677317,177.94,177.89,3.99132586]
[1641096643489,12.52677317,177.94,177.87,67.35182586]
[1641096644191,12.52677317,177.94,177.89,27.66479]
[1641096645588,12.52677317,177.94,177.87,67.35182586]
[1641096645788,18.90077317,177.94,177.87,67.35182586]
[1641096646290,3.9901981,177.88,177.87,67.35182586]
[1641096646490,3.9901981,177.88,177.87,3.99132586]
[1641096648593,6.064,177.93,177.86,5.28857725]
[1641096649094,9.064,177.93,177.86,5.28857725]
[1641096649295,2.67811121,177.92,177.86,5.28857725]
[1641096650494,27.66479,177.93,177.86,5.28857725]
[1641096650996,12.52677317,177.92,177.86,5.28857725]
[1641096651196,12.52677317,177.92,177.86,67.47957725]
[1641096651695,44.46825619,177.94,177.86,66.18232586]
[1641096652295,27.66479,177.93,177.86,66.18232586]
[1641096652996,12.52677317,177.92,177.86,66.18232586]
[1641096654302,12.52677317,177.92,177.89,6.47586982]
[1641096655099,3.0,177.91,177.89,6.47586982]
[1641096655799,2.67811121,177.9,177.89,6.47586982]
[1641096658999,11.97478395,177.9,177.89,6.47586982]
[1641096659499,11.97478395,177.91,177.89,6.47586982]
[1641096662004,11.97478395,177.91,177.88,4.381]
[1641096662005,1.71590652,177.91,177.88,4.381]
[1641096662405,2.67811121,177.9,177.88,4.381]
[1641096662604,2.67811121,177.9,177.87,3.99132586]
[1641096663104,3.98772853,177.89,177.87,5.28848764]
[1641096665910,3.98772853,177.88,177.87,5.28848764]
[1641096671012,12.51144157,177.94,177.87,5.28848764]
[1641096680019,12.51144157,177.94,177.88,3.99132586]
[1641096680821,12.51144157,177.94,177.86,90.09571586]
[1641096681219,12.51144157,177.94,177.86,93.09571586]
[1641096681619,12.51144157,177.94,177.86,90.09571586]
[1641096681922,12.51144157,177.94,177.86,62.43092586]
[1641096682422,12.51144157,177.94,177.86,90.09571586]
[1641096683927,12.51144157,177.94,177.86,62.43092586]
[1641096686426,12.51144157,177.94,177.86,58.4396]
[1641096686726,27.66479,177.92,177.86,58.4396]
[1641096687728,2.67811121,177.91,177.86,58.4396]
[1641096688827,2.67811121,177.91,177.86,52.05322454]
[1641096689227,12.52109577,177.91,177.86,56.04470667]
[1641096690028,44.46257879,177.94,177.86,56.04470667]
[1641096690727,44.46257879,177.94,177.87,3.99148213]
[1641096690927,44.46257879,177.94,177.87,5.29012053]
[1641096690928,12.52109577,177.94,177.87,5.29012053]
[1641096691629,40.18588577,177.94,177.87,5.29012053]
[1641096692435,11.97449433,177.9,177.86,56.04470667]
[1641096699140,3.98577411,177.87,177.86,52.05322454]
[1641096699339,3.98577411,177.87,177.85,9.60851297]
[1641096699740,3.98577411,177.88,177.86,5.28825816]
[1641096700441,3.98577411,177.87,177.85,9.60851297]
[1641096701843,3.98577411,177.87,177.85,12.60851297]
[1641096702142,3.98577411,177.87,177.85,9.60851297]
[1641096702544,3.98577411,177.87,177.85,12.60851297]
[1641096703144,3.98577411,177.88,177.86,5.28825696]
[1641096709748,3.98577411,177.88,177.85,12.60851297]
[1641096710149,3.98577411,177.88,177.86,3.0]
[1641096710350,3.98577411,177.87,177.86,8.29012175]
[1641096711249,3.98577411,177.87,177.86,5.29012175]
[1641096713051,3.98577411,177.87,177.86,1.29863962]
[1641096719159,3.98577411,177.88,177.86,5.2872967]
[1641096726267,3.98577411,177.88,177.86,9.6072967]
[1641096727074,3.98577411,177.88,177.87,5.2872967]
[1641096729676,2.67811121,177.91,177.87,3.98865708]
[1641096729875,11.97449433,177.89,177.85,3.98865708]
[1641096730474,11.97449433,177.89,177.84,3.98865708]
[1641096730676,11.97449433,177.88,177.84,3.98865708]
[1641096736883,11.97449433,177.88,177.84,5.28724123]
[1641096737485,11.97449433,177.88,177.84,3.98865708]
[1641096738684,11.97449433,177.88,177.84,5.28724123]
[1641096739088,14.97449433,177.88,177.84,1.29858415]
[1641096739285,14.97449433,177.88,177.8,11.97449433]
[1641096739687,3.0,177.85,177.8,11.97449433]
[1641096739888,3.0,177.84,177.8,11.97449433]
[1641096740187,11.97449433,177.84,177.76,17.5943662]
[1641096740588,11.97449433,177.84,177.76,11.97449433]
[1641096741285,11.97449433,177.82,177.75,27.66479]
[1641096742187,62.0144,177.83,177.75,27.66479]
[1641096748894,62.0144,177.83,177.77,3.0]
[1641096749091,62.0144,177.83,177.76,4.562]
[1641096749893,11.97449433,177.82,177.75,25.83763042]
[1641096750494,11.97449433,177.82,177.75,28.83763042]
[1641096751294,73.98889433,177.83,177.75,37.81212475]
[1641096751996,73.98889433,177.83,177.75,40.81212475]
[1641096753002,73.98889433,177.83,177.75,37.81212475]
[1641096755604,11.97449433,177.83,177.79,3.0]
[1641096755803,11.97449433,177.83,177.79,6.281]
[1641096756002,11.97449433,177.86,177.79,6.281]
[1641096756206,11.97449433,177.86,177.8,27.66479]
[1641096758708,11.97449433,177.86,177.77,70.63249433]
[1641096760110,11.97449433,177.86,177.79,27.66479]
[1641096760511,11.97449433,177.86,177.8,3.0]
[1641096760913,11.97449433,177.86,177.79,34.27579]
[1641096762112,11.97449433,177.86,177.82,27.66479]
[1641096764015,61.4347,177.87,177.78,3.0]
[1641096764215,61.4347,177.87,177.79,3.0]
[1641096764417,61.4347,177.87,177.82,27.66479]
[1641096772126,73.40919433,177.87,177.82,27.66479]
[1641096775927,11.97449433,177.86,177.82,27.66479]
[1641096777429,11.97449433,177.86,177.79,3.0]
[1641096779434,11.97449433,177.86,177.82,27.66479]
[1641096779832,14.66829213,177.86,177.82,27.66479]
[1641096781433,14.66829213,177.86,177.8,58.6942]
[1641096782235,14.66829213,177.86,177.81,1.29861449]
[1641096783536,14.66829213,177.86,177.83,27.66479]
[1641096784738,2.6937978,177.86,177.83,27.66479]
[1641096785238,2.6937978,177.86,177.8,58.6942]
[1641096785936,2.6937978,177.86,177.81,1.29776101]
[1641096787539,2.6937978,177.86,177.83,27.66479]
[1641096795248,2.6937978,177.86,177.81,3.0]
[1641096796046,2.6937978,177.86,177.84,27.66479]
[1641096798350,14.66829213,177.86,177.84,27.66479]
[1641096798548,14.66829213,177.86,177.82,27.66479]
[1641096798749,20.18929213,177.86,177.8,58.6942]
[1641096799650,11.97449433,177.85,177.81,3.99213956]
[1641096800250,14.66829213,177.85,177.81,5.29057618]
[1641096804963,11.97449433,177.84,177.8,62.68633956]
[1641096810458,12.53840124,177.86,177.8,58.6942]
[1641096811059,11.9770032,177.84,177.8,62.6865344]
[1641096811659,12.53840124,177.86,177.8,62.6865344]
[1641096811860,12.53840124,177.86,177.8,58.6942]
[1641096812362,3.98389084,177.82,177.8,58.6942]
[1641096812560,3.98389084,177.82,177.79,21.27626256]
[1641096815065,3.98389084,177.82,177.78,3.98388352]
[1641096816167,3.98389084,177.82,177.78,5.27895475]
[1641096821072,11.95167252,177.82,177.78,5.27895475]
[1641096821873,11.95167252,177.81,177.77,31.64867352]
[1641096824775,3.99344531,177.78,177.77,31.64867352]
[1641096825377,3.99344531,177.78,177.77,32.94757771]
[1641096826982,3.99344531,177.78,177.77,35.94757771]
[1641096827283,4.531e-05,177.78,177.77,32.94757771]
[1641096827677,11.95167252,177.84,177.77,28.96369419]
[1641096828282,11.95167252,177.85,177.78,1.29890419]
[1641096829377,11.95167252,177.85,177.81,27.66479]
[1641096829580,11.95167252,177.85,177.81,32.20779]
[1641096830480,14.64507436,177.86,177.81,32.20779]
[1641096830982,11.95167252,177.85,177.81,32.20779]
[1641096831682,14.64507436,177.86,177.81,32.20779]
[1641096832484,11.95167252,177.85,177.81,32.20779]
[1641096833583,11.95167252,177.84,177.81,32.20779]
[1641096834384,11.95167252,177.84,177.81,27.66479]
[1641096837887,11.95167252,177.84,177.78,51.3007]
[1641096838389,11.95167252,177.84,177.8,27.66479]
[1641096839590,11.95167252,177.84,177.79,5.203]
[1641096839989,11.95167252,177.84,177.78,78.96549]
[1641096840692,11.95167252,177.84,177.79,1.29884917]
[1641096846693,11.95167252,177.83,177.79,1.29884917]
[1641096850299,11.95167252,177.81,177.78,27.66479]
[1641096850502,17.48967252,177.81,177.78,27.66479]
[1641096851401,2.69340184,177.8,177.78,27.66479]
[1641096853502,2.69340184,177.8,177.76,5.61987187]
[1641096854902,2.69340184,177.8,177.77,1.29914975]
[1641096856304,11.95167252,177.81,177.77,1.29914975]
[1641096857107,11.95167252,177.8,177.76,27.66479]
[1641096857805,11.95167252,177.81,177.76,27.66479]
[1641096858407,11.95167252,177.81,177.77,1.29913734]
[1641096860008,14.64507436,177.83,177.74,54.1271]
[1641096860908,14.64507436,177.83,177.77,27.66479]
[1641096862310,11.95167252,177.81,177.77,27.66479]
[1641096862809,16.63167252,177.81,177.77,27.66479]
[1641096864115,2.69340184,177.8,177.77,27.66479]
[1641096866615,14.64507436,177.8,177.77,27.66479]
[1641096867215,14.64507436,177.8,177.74,81.79189]
[1641096867415,2.69340184,177.8,177.74,54.1271]
[1641096867816,5.69340184,177.8,177.74,54.1271]
[1641096868118,11.95167252,177.81,177.75,1.29913485]
[1641096868918,11.95167252,177.78,177.72,1.29913485]
[1641096870124,11.95167252,177.78,177.74,27.66479]
[1641096870322,11.95167252,177.78,177.74,30.66479]
[1641096870622,2.69340184,177.79,177.75,1.29913485]
[1641096873124,54.4047,177.8,177.74,27.66479]
[1641096873722,2.69455764,177.79,177.75,1.29912981]
[1641096874623,54.4047,177.8,177.73,39.63928433]
[1641096875223,2.69454273,177.79,177.74,1.29913058]
[1641096876025,54.4047,177.8,177.73,39.63928433]
[1641096876425,54.4047,177.8,177.73,11.97449433]
[1641096876925,2.69454995,177.79,177.74,1.29913051]
[1641096877726,54.4047,177.8,177.73,11.97449433]
[1641096877926,54.4047,177.8,177.73,16.98549433]
[1641096878328,2.69453904,177.79,177.74,28.9639205]
[1641096878828,54.4047,177.8,177.74,27.66479]
[1641096879030,11.95167252,177.81,177.75,1.29913155]
[1641096879827,34.94148302,177.85,177.74,39.63928433]
[1641096879828,14.64599496,177.82,177.74,39.63928433]
[1641096880431,14.64599496,177.82,177.74,88.14008433]
[1641096880630,14.64599496,177.83,177.75,1.29788744]
[1641096887140,11.95167252,177.82,177.75,1.29788744]
[1641096887940,3.98969551,177.78,177.76,3.98969551]
[1641096888643,11.95167252,177.82,177.74,76.16559]
[1641096888943,11.95167252,177.82,177.75,1.29786498]
[1641096889442,11.95167252,177.82,177.74,76.16559]
[1641096889643,11.95167252,177.81,177.77,3.99362509]
[1641096890243,12.5323083,177.82,177.75,1.29913613]
[1641096891249,9.83798586,177.82,177.77,3.99361215]
[1641096891451,11.98083644,177.81,177.77,3.99361215]
[1641096892050,40.1970983,177.83,177.75,1.29913734]
[1641096893254,12.5323083,177.83,177.74,48.5008]
[1641096893450,11.98083265,177.81,177.77,3.99361088]
[1641096893652,11.98083265,177.81,177.77,9.56061088]
[1641096894151,40.1970983,177.83,177.77,5.567]
[1641096894651,11.98080813,177.81,177.77,9.56060271]
[1641096895453,12.5323083,177.82,177.77,5.567]
[1641096895853,11.98081057,177.81,177.77,9.56060352]
[1641096896656,12.5323083,177.82,177.77,5.567]
[1641096896853,12.5323083,177.82,177.74,76.16559]
[1641096897255,27.66479,177.83,177.74,76.16559]
[1641096897459,11.98086092,177.82,177.78,3.99362031]
[1641096897958,11.98086092,177.82,177.74,88.14008433]
[1641096898156,14.67537061,177.82,177.74,88.14008433]
[1641096898658,14.67537061,177.82,177.78,3.99364633]
[1641096899959,14.67537061,177.82,177.74,88.14008433]
[1641096900458,14.67537061,177.82,177.78,3.99364791]
[1641096900660,14.67537061,177.82,177.78,10.33964791]
[1641096901160,14.67537061,177.82,177.78,6.346]
[1641096902265,11.98086092,177.82,177.78,10.33952223]
[1641096902464,11.98086092,177.82,177.78,7.45252299]
[1641096902763,12.54186024,177.83,177.78,3.45900076]
[1641096903464,11.97980109,177.82,177.78,7.45226779]
[1641096904165,12.54186024,177.83,177.78,3.45900076]
[1641096905266,11.97976636,177.82,177.78,3.45900076]
[1641096905967,11.97976636,177.82,177.74,76.16559]
[1641096906171,3.0,177.8,177.73,11.97449433]
[1641096906369,3.0,177.79,177.73,11.97449433]
[1641096906569,52.2013,177.8,177.77,3.993245]
[1641096906768,3.0,177.8,177.73,11.97449433]
[1641096906969,3.0,177.79,177.73,11.97449433]
[1641096907569,3.0,177.74,177.68,11.97449433]
[1641096907768,9.144,177.74,177.68,11.97449433]
[1641096908168,27.66479,177.71,177.68,11.97449433]
[1641096908568,3.0,177.7,177.64,31.94148302]
[1641096908769,3.0,177.7,177.64,11.98546417]
[1641096908770,8.839,177.7,177.64,11.98546417]
[1641096909170,5.839,177.7,177.64,11.98546417]
[1641096909369,3.0,177.67,177.64,11.98546417]
[1641096909569,3.0,177.68,177.64,11.98546417]
[1641096909769,3.0,177.67,177.6,31.94148302]
[1641096909972,3.0,177.67,177.58,5.6257208]
[1641096910169,27.66479,177.64,177.58,5.6257208]
[1641096910369,32.81479,177.64,177.58,5.6257208]
[1641096911169,32.81479,177.64,177.57,3.19761778]
[1641096911670,26.4196321,177.64,177.57,3.19761778]
[1641096911870,3.0,177.63,177.57,3.19761778]
[1641096912070,29.4196321,177.64,177.57,3.19761778]
[1641096912274,26.4196321,177.64,177.56,6.12590677]
[1641096912672,29.4196321,177.64,177.56,6.12590677]
[1641096913273,29.4196321,177.64,177.54,6.12590677]
[1641096913473,3.0,177.63,177.54,6.12590677]
[1641096913874,3.0,177.62,177.54,6.12590677]
[1641096914275,27.66479,177.61,177.54,6.12590677]
[1641096915080,27.66479,177.61,177.53,11.75305212]
[1641096916176,30.66479,177.61,177.53,11.75305212]
[1641096916576,75.4593321,177.64,177.55,3.0]
[1641096916778,49.0397,177.64,177.56,3.0]
[1641096916977,49.0397,177.64,177.55,6.592]
[1641096918381,49.0397,177.64,177.57,27.66479]
[1641096918581,30.66479,177.68,177.57,27.66479]
[1641096918781,80.05389,177.68,177.57,27.66479]
[1641096919082,77.05389,177.68,177.57,27.66479]
[1641096919282,77.05389,177.68,177.59,5.62540433]
[1641096919481,77.05389,177.68,177.59,10.46440433]
[1641096919681,49.3891,177.68,177.59,10.46440433]
[1641096919881,3.0,177.71,177.63,5.6241388]
[1641096920086,3.0,177.71,177.63,4.379]
[1641096920282,27.66479,177.7,177.63,4.379]
[1641096920484,35.21579,177.7,177.63,4.379]
[1641096920684,3.0,177.69,177.63,4.379]
[1641096920983,3.0,177.69,177.6,11.74919025]
[1641096921383,12.86244084,177.69,177.6,5.62508789]
[1641096922085,9.86244084,177.69,177.6,5.62508789]
[1641096923087,27.66479,177.7,177.6,5.62508789]
[1641096923285,30.66479,177.7,177.6,12.22108789]
[1641096923584,27.66479,177.7,177.6,12.22108789]
[1641096924484,27.66479,177.7,177.62,27.66479]
[1641096925488,27.66479,177.7,177.6,5.62508789]
[1641096925686,35.17079,177.7,177.6,5.62508789]
[1641096925887,3.0,177.69,177.6,5.62508789]
[1641096926087,32.17079,177.7,177.6,5.62508789]
[1641096926287,35.17079,177.7,177.6,5.62508789]
[1641096929488,3.0,177.69,177.6,5.62508789]
[1641096929690,35.17079,177.7,177.6,5.62508789]
[1641096930490,35.17079,177.7,177.6,33.28987789]
[1641096930491,3.0,177.69,177.6,33.28987789]
[1641096930691,3.0,177.69,177.6,27.66479]
[1641096932802,12.8647952,177.69,177.6,27.66479]
[1641096933003,12.8647952,177.69,177.56,53.52905384]
[1641096933800,3.0,177.69,177.57,6.12429434]
[1641096934603,62.60627302,177.69,177.6,27.66479]
[1641096935802,41.80627822,177.68,177.6,27.66479]
[1641096938105,9.8647952,177.7,177.6,27.66479]
[1641096939205,11.99019223,177.67,177.6,27.66479]
[1641096943312,11.99019223,177.67,177.59,11.99019223]
[1641096943910,11.99019223,177.67,177.61,27.66479]
[1641096946718,11.99019223,177.68,177.61,27.66479]
[1641096948322,11.99019223,177.68,177.62,1.29565025]
[1641096952925,11.99019223,177.67,177.62,1.29565025]
[1641096955129,11.99019223,177.65,177.57,64.81709223]
[1641096956131,11.99019223,177.64,177.58,1.29726577]
[1641096957333,11.99019223,177.64,177.59,27.66479]
[1641096957834,11.99019223,177.64,177.6,1.29726577]
[1641096959337,11.99019223,177.65,177.6,1.29726577]
[1641096962338,3.0,177.64,177.6,1.29726577]
[1641096962538,9.441,177.64,177.6,1.29726577]
[1641096962739,11.99019223,177.63,177.58,1.29726577]
[1641096962939,61.15279223,177.63,177.58,1.29726577]
[1641096963440,27.66479,177.62,177.58,1.29726577]
[1641096963839,11.99019223,177.6,177.55,1.29726577]
[1641096966145,14.68618948,177.61,177.55,1.29726577]
[1641096967147,14.68618948,177.61,177.57,3.99829204]
[1641096967346,17.68618948,177.61,177.57,3.99829204]
[1641096967544,27.66479,177.58,177.57,3.99829204]
[1641096967746,32.64579,177.58,177.53,3.99829204]
[1641096968547,14.69276784,177.57,177.53,3.99829204]
[1641096972056,11.99677059,177.57,177.51,5.62793708]
[1641096972256,27.66479,177.58,177.51,5.62793708]
[1641096972754,14.6987628,177.57,177.53,3.99897134]
[1641096973555,27.66479,177.58,177.51,5.62793708]
[1641096974256,14.69895809,177.57,177.53,3.99901898]
[1641096974759,27.66479,177.58,177.51,5.62793708]
[1641096975761,14.5820567,177.57,177.53,3.96004923]
[1641096976362,27.66479,177.56,177.51,5.62793708]
[1641096976961,2.70190151,177.55,177.53,3.99903415]
[1641096977566,27.66479,177.56,177.51,5.62793708]
[1641096978468,2.70192827,177.55,177.53,3.99904362]
[1641096978964,27.66479,177.56,177.51,5.62793708]
[1641096979767,2.70189267,177.55,177.54,3.99901125]
[1641096980468,2.70189267,177.55,177.51,5.62793708]
[1641096980469,27.66479,177.56,177.51,5.62793708]
[1641096980970,2.70185223,177.55,177.54,3.99897449]
[1641096981569,27.66479,177.56,177.51,5.62793708]
[1641096982170,2.70183111,177.55,177.54,3.99895529]
[1641096983074,60.47203376,177.58,177.51,5.62793708]
[1641096983272,27.66479,177.56,177.51,5.62793708]
[1641096983773,2.70181611,177.55,177.54,3.99894165]
[1641096984373,27.66479,177.56,177.51,5.62793708]
[1641096985073,2.70182014,177.55,177.54,3.99894532]
[1641096985574,27.66479,177.56,177.51,5.62793708]
[1641096986275,2.70181208,177.55,177.54,3.99893799]
[1641096987077,27.66479,177.56,177.51,5.62793708]
[1641096987677,2.70178692,177.55,177.54,3.99891512]
[1641096987878,2.70178692,177.55,177.54,8.34291512]
[1641096988280,27.66479,177.56,177.54,4.344]
[1641096989081,2.70178455,177.55,177.54,4.344]
[1641096989580,27.66479,177.56,177.54,4.344]
[1641096991083,2.70177112,177.55,177.54,8.34290076]
[1641096991582,27.66479,177.56,177.54,4.344]
[1641096991782,27.66479,177.56,177.54,5.64112986]
[1641096992383,2.70176318,177.55,177.54,8.34289353]
[1641096992884,27.66479,177.56,177.54,5.64112883]
[1641096993487,2.70180257,177.55,177.54,8.34292934]
[1641096994185,27.66479,177.56,177.54,5.64113139]
[1641096994589,2.70167032,177.55,177.54,8.34280912]
[1641096995392,27.66479,177.56,177.54,5.64034493]
[1641096995890,27.66479,177.56,177.54,1.29634493]
[1641096996091,27.66479,177.56,177.54,3.99636703]
[1641096996793,27.66479,177.56,177.52,1.29634414]
[1641096997395,27.66479,177.56,177.54,3.99635247]
[1641096997994,27.66479,177.56,177.54,1.29634407]
[1641096998597,27.66479,177.56,177.54,3.99634729]
[1641096999094,3.99634467,177.55,177.51,1.29634625]
[1641096999797,27.66479,177.56,177.51,1.29634625]
[1641096999996,27.66479,177.56,177.54,3.99634737]
[1641097000400,48.475,177.58,177.54,3.99634737]
[1641097000597,3.99633816,177.55,177.53,5.657]
[1641097001199,2.70001267,177.57,177.54,5.29270387]
[1641097001797,30.36480267,177.57,177.54,5.29270387]
[1641097002399,27.66479,177.57,177.5,63.37149223]
[1641097002602,2.70001088,177.56,177.53,3.996356]
[1641097003199,3.996341,177.54,177.5,51.3813]
[1641097003401,3.996341,177.54,177.49,14.99019223]
[1641097003701,27.66479,177.57,177.49,14.99019223]
[1641097003899,2.7000013,177.56,177.53,3.99634729]
[1641097004402,60.46407357,177.58,177.54,3.99879918]
[1641097004603,30.36644939,177.57,177.54,3.99879918]
[1641097005304,2.70165536,177.56,177.5,19.41223759]
[1641097005804,60.46407357,177.58,177.54,3.99880728]
[1641097006409,60.46407357,177.58,177.5,19.41223759]
[1641097006608,30.36645598,177.57,177.5,19.41223759]
[1641097007211,2.70167966,177.56,177.54,3.99881761]
[1641097007710,27.66479,177.57,177.5,19.41223759]
[1641097007909,27.66479,177.57,177.5,24.39023759]
[1641097008509,27.66479,177.57,177.5,18.26533202]
[1641097008710,2.70171587,177.56,177.53,3.99885053]
[1641097009113,2.70171587,177.56,177.51,1.29713979]
[1641097009114,27.66479,177.57,177.5,4.978]
[1641097009313,27.66479,177.57,177.49,60.25459223]
[1641097009911,2.7017378,177.56,177.54,3.99887047]
[1641097010412,27.66479,177.57,177.54,1.29713266]
[1641097011013,27.66479,177.57,177.5,18.11512631]
[1641097011214,2.70174548,177.56,177.54,3.99887745]
[1641097011714,27.66479,177.57,177.5,19.41225964]
[1641097012212,2.70173476,177.56,177.54,3.9988677]
[1641097012914,60.47159337,177.58,177.5,19.41225964]
[1641097013314,27.66479,177.57,177.5,19.41225964]
[1641097013613,30.36653154,177.57,177.54,3.99887386]
[1641097013814,2.70174154,177.57,177.54,3.99887386]
[1641097014016,2.70173098,177.56,177.5,19.41225964]
[1641097014814,2.70087375,177.57,177.54,3.99759697]
[1641097015516,27.66479,177.57,177.5,13.28732556]
[1641097015716,27.66479,177.57,177.53,3.99765313]
[1641097016216,2.70095915,177.56,177.5,1.29713333]
[1641097016918,27.66479,177.57,177.53,3.99767109]
[1641097017617,2.70094576,177.56,177.5,1.29713333]
[1641097018318,27.66479,177.57,177.53,3.99764121]
[1641097018717,48.475,177.58,177.53,3.99764121]
[1641097019020,48.475,177.58,177.53,9.27864121]
[1641097019518,2.70093074,177.56,177.53,5.281]
[1641097020117,27.66479,177.57,177.53,5.281]
[1641097020320,27.66479,177.57,177.53,9.27870998]
[1641097020321,3.0,177.56,177.53,9.27870998]
[1641097020618,3.0,177.55,177.49,11.99019223]
[1641097020820,2.70183602,177.55,177.48,27.66479]
[1641097021619,11.99684048,177.51,177.48,21.26445053]
[1641097021822,11.99684048,177.52,177.48,21.26445053]
[1641097023027,11.99684048,177.51,177.48,21.26445053]
[1641097024822,14.6986765,177.53,177.49,1.29701828]
[1641097025521,2.70183602,177.53,177.49,1.29701828]
[1641097026822,2.70183602,177.53,177.48,21.26445053]
[1641097027825,3.0,177.52,177.44,47.658]
[1641097028025,2.70183602,177.53,177.44,47.658]
[1641097028226,2.70183602,177.53,177.44,53.257]
[1641097028626,11.99684048,177.52,177.44,53.257]
[1641097029726,27.66479,177.49,177.44,53.257]
[1641097029925,27.66479,177.49,177.44,47.658]
[1641097039239,11.99684048,177.53,177.44,47.658]
[1641097040041,14.68706041,177.53,177.44,47.658]
[1641097040441,27.66479,177.51,177.44,47.658]